fUST/lending_fUST_20250312
["ID","MTS","AMOUNT","RATE_DAILY","PERIOD"]
[356009808,1741794645156,-500.0,0.00022173,2]
[356009809,1741794645166,-500.0,0.00022173,2]
[356009810,1741794645175,-500.0,0.00022173,2]
[356009811,1741794645185,-500.0,0.00022173,2]
[356009812,1741794645194,-500.0,0.00022173,2]
[356009813,1741794645203,-500.0,0.00022173,2]
[356009814,1741794645212,-163.37783337,0.00022173,2]
[356009815,1741794645222,-500.0,0.00022191,2]
[356009816,1741794645232,-500.0,0.00022191,2]
[356009817,1741794645241,-500.0,0.00022191,2]
[356009818,1741794645251,-500.0,0.00022191,5]
[356009819,1741794645260,-500.0,0.00022191,2]
[356009820,1741794645270,-715.23,0.00022191,2]
[356009821,1741794645280,-500.0,0.00022191,2]
[356009822,1741794645289,-500.0,0.00022191,2]
[356009823,1741794645302,-500.0,0.00022191,2]
[356009824,1741794645312,-500.0,0.00022191,2]
[356009825,1741794645322,-1063.66,0.00022191,2]
[356009826,1741794645331,-514.1262304,0.00022191,2]
[356009827,1741794645341,-500.0,0.00022191,2]
[356009828,1741794645351,-511.02908351,0.00022191,2]
[356009829,1741794645360,-500.0,0.00022191,2]
[356009830,1741794645370,-244.09021737,0.00022191,2]
[356009831,1741794645380,-500.0,0.00022191,2]
[356009832,1741794645389,-500.0,0.00022191,2]
[356009833,1741794645399,-500.0,0.00022191,2]
[356009834,1741794645408,-500.0,0.00022191,2]
[356009835,1741794645418,-500.0,0.00022191,2]
[356009836,1741794645427,-500.0,0.00022191,2]
[356009837,1741794645436,-500.0,0.00022191,2]
[356009838,1741794645446,-500.0,0.00022191,2]
[356009839,1741794645456,-500.0,0.00022191,2]
[356009840,1741794645465,-613.14,0.00022191,2]
[356009841,1741794645475,-500.0,0.00022191,2]
[356009842,1741794645484,-500.0,0.00022191,2]
[356009843,1741794645494,-500.0,0.00022191,2]
[356009844,1741794645508,-500.0,0.00022191,2]
[356009845,1741794645518,-500.0,0.00022191,2]
[356009846,1741794645527,-500.0,0.00022191,2]
[356009847,1741794645538,-500.0,0.00022191,2]
[356009848,1741794645548,-500.0,0.00022191,2]
[356009849,1741794645557,-500.0,0.00022191,2]
[356009850,1741794645567,-500.0,0.00022191,2]
[356009851,1741794645578,-512.69,0.00022191,2]
[356009852,1741794645587,-579.28231291,0.00022191,2]
[356009853,1741794645597,-500.0,0.00022191,2]
[356009854,1741794645607,-500.0,0.00022191,2]
[356009855,1741794645616,-500.0,0.00022191,2]
[356009856,1741794645625,-500.0,0.00022191,2]
[356009857,1741794645635,-500.0,0.00022191,2]
[356009858,1741794645645,-500.0,0.00022191,2]
[356009859,1741794645655,-500.0,0.00022191,2]
[356009860,1741794645665,-500.0,0.00022191,2]
[356009861,1741794645676,-500.0,0.00022191,2]
[356009862,1741794645685,-500.0,0.00022191,2]
[356009863,1741794645695,-500.0,0.00022191,2]
[356009864,1741794645705,-500.0,0.00022191,2]
[356009865,1741794645715,-502.96139612,0.00022191,2]
[356009866,1741794645725,-500.0,0.00022191,2]
[356009867,1741794645735,-500.0,0.00022191,2]
[356009868,1741794645744,-500.0,0.00022191,2]
[356009869,1741794645755,-500.0,0.00022191,2]
[356009870,1741794645765,-500.0,0.00022191,2]
[356009871,1741794645774,-500.0,0.00022191,2]
[356009872,1741794645787,-500.0,0.00022191,2]
[356009873,1741794645797,-500.0,0.00022191,2]
[356009874,1741794645807,-500.0,0.00022191,2]
[356009875,1741794645817,-500.0,0.00022191,2]
[356009876,1741794645827,-500.0,0.00022191,2]
[356009877,1741794645836,-539.28,0.00022191,2]
[356009878,1741794645847,-500.0,0.00022191,2]
[356009879,1741794645859,-500.0,0.00022191,2]
[356009880,1741794645868,-598.68595098,0.00022191,2]
[356009881,1741794645878,-500.0,0.00022191,2]
[356009882,1741794645889,-500.0,0.00022191,2]
[356009883,1741794645899,-500.0,0.00022191,2]
[356009884,1741794645908,-500.0,0.00022191,2]
[356009885,1741794645918,-500.0,0.00022191,2]
[356009886,1741794645928,-500.0,0.00022191,2]
[356009887,1741794645938,-500.0,0.00022191,2]
[356009888,1741794645947,-500.0,0.00022191,2]
[356009889,1741794645957,-500.0,0.00022191,2]
[356009890,1741794645967,-1022.31,0.00022191,2]
[356009891,1741794645978,-1009.59,0.00022191,2]
[356009892,1741794645988,-500.0,0.00022191,2]
[356009893,1741794645998,-500.0,0.00022191,2]
[356009894,1741794646007,-500.0,0.00022191,2]
[356009895,1741794646018,-500.0,0.00022191,2]
[356009896,1741794646027,-500.0,0.00022191,2]
[356009897,1741794646039,-1471.75,0.00022191,2]
[356009898,1741794646049,-500.0,0.00022191,2]
[356009899,1741794646059,-914.37,0.00022191,2]
[356009900,1741794646069,-500.0,0.00022191,2]
[356009901,1741794646078,-522.55,0.00022191,2]
[356009902,1741794646088,-500.0,0.00022191,2]
[356009903,1741794646098,-582.30362288,0.00022191,2]
[356009904,1741794646108,-500.0,0.00022191,2]
[356009905,1741794646117,-941.18,0.00022191,2]
[356009906,1741794646128,-500.0,0.00022191,2]
[356009907,1741794646138,-500.0,0.00022191,2]
[356009908,1741794646147,-500.0,0.00022191,2]
[356009909,1741794646157,-1862.45,0.00022191,2]
[356009911,1741794646166,-500.0,0.00022191,2]
[356009913,1741794646177,-500.0,0.00022191,2]
[356009915,1741794646186,-500.0,0.00022191,2]
[356009916,1741794646196,-500.0,0.00022191,2]
[356009917,1741794646205,-530.35,0.00022191,2]
[356009918,1741794646215,-500.0,0.00022191,2]
[356009919,1741794646224,-500.0,0.00022191,2]
[356009920,1741794646234,-500.0,0.00022191,2]
[356009921,1741794646243,-500.0,0.00022191,2]
[356009922,1741794646252,-500.0,0.00022191,2]
[356009923,1741794646262,-555.86,0.00022191,2]
[356009924,1741794646272,-890.46,0.00022191,2]
[356009925,1741794646283,-500.0,0.00022191,2]
[356009926,1741794646293,-500.0,0.00022191,2]
[356009927,1741794646302,-500.0,0.00022191,2]
[356009928,1741794646311,-500.0,0.00022191,2]
[356009929,1741794646320,-500.0,0.00022191,2]
[356009930,1741794646330,-581.21,0.00022191,2]
[356009931,1741794646340,-500.0,0.00022191,2]
[356009932,1741794646350,-570.22,0.00022191,2]
[356009933,1741794646359,-500.0,0.00022191,2]
[356009934,1741794646369,-1798.17,0.00022191,2]
[356009935,1741794646378,-500.0,0.00022191,2]
[356009936,1741794646388,-2164.57,0.00022191,2]
[356009937,1741794646398,-500.0,0.00022191,2]
[356009938,1741794646407,-1121.99,0.00022191,2]
[356009939,1741794646417,-500.0,0.00022191,2]
[356009940,1741794646427,-500.0,0.00022191,2]
[356009941,1741794646437,-500.0,0.00022191,2]
[356009942,1741794646446,-500.0,0.00022191,2]
[356009943,1741794646456,-500.0,0.00022191,2]
[356009944,1741794646465,-500.0,0.00022191,2]
[356009945,1741794646475,-1604.04,0.00022191,2]
[356009946,1741794646485,-511.53,0.00022191,2]
[356009947,1741794646499,-500.0,0.00022191,2]
[356009948,1741794646508,-500.0,0.00022191,2]
[356009949,1741794646518,-1782.15,0.00022191,2]
[356009950,1741794646529,-1013.36,0.00022191,2]
[356009951,1741794646541,-500.0,0.00022191,2]
[356009952,1741794646551,-500.0,0.00022191,2]
[356009954,1741794646563,-3181.93,0.00022191,2]
[356009956,1741794646576,-500.0,0.00022191,2]
[356009957,1741794646587,-500.0,0.00022191,2]
[356009958,1741794646597,-500.0,0.00022191,2]
[356009959,1741794646607,-500.0,0.00022191,2]
[356009960,1741794646617,-500.0,0.00022191,2]
[356009961,1741794646627,-500.0,0.00022191,2]
[356009962,1741794646636,-500.0,0.00022191,2]
[356009964,1741794646646,-500.0,0.00022191,2]
[356009966,1741794646655,-500.0,0.00022191,2]
[356009967,1741794646664,-413.69860278,0.00022191,2]
[356009968,1741794646674,-599.96821378,0.00022191,2]
[356009969,1741794646684,-500.0,0.00022191,2]
[356009970,1741794646693,-1060.22,0.00022191,2]
[356009971,1741794646702,-1325.79,0.00022191,2]
[356009972,1741794646712,-500.0,0.00022191,2]
[356009974,1741794646722,-788.48,0.00022191,2]
[356009975,1741794646731,-612.89,0.00022191,2]
[356009976,1741794646741,-500.0,0.00022191,2]
[356009977,1741794646750,-500.0,0.00022191,2]
[356009978,1741794646760,-500.0,0.00022191,2]
[356009979,1741794646770,-520.8,0.00022191,2]
[356009980,1741794646782,-500.0,0.00022191,2]
[356009981,1741794646791,-630.42,0.00022191,2]
[356009982,1741794646801,-500.0,0.00022191,2]
[356009983,1741794646810,-589.49,0.00022191,2]
[356009984,1741794646820,-500.0,0.00022191,2]
[356009985,1741794646830,-500.0,0.00022191,2]
[356009986,1741794646840,-1492.56,0.00022191,2]
[356009987,1741794646850,-500.0,0.00022191,2]
[356009988,1741794646860,-500.0,0.00022191,2]
[356009989,1741794646870,-748.84,0.00022191,2]
[356009990,1741794646880,-694.14,0.00022191,2]
[356009991,1741794646890,-575.6037553,0.00022191,2]
[356009992,1741794646900,-500.0,0.00022191,2]
[356009993,1741794646910,-500.0,0.00022191,2]
[356009994,1741794646919,-1032.76,0.00022191,2]
[356009995,1741794646928,-500.0,0.00022191,2]
[356009996,1741794646939,-580.19,0.00022191,2]
[356009997,1741794646949,-540.53,0.00022191,2]
[356009998,1741794646960,-791.38,0.00022191,2]
[356009999,1741794646970,-500.0,0.00022191,2]
[356010000,1741794646980,-500.0,0.00022191,2]
[356010001,1741794646990,-500.0,0.00022191,2]
[356010002,1741794646999,-500.0,0.00022191,2]
[356010003,1741794647009,-500.0,0.00022191,2]
[356010004,1741794647019,-500.0,0.00022191,2]
[356010005,1741794647030,-500.0,0.00022191,2]
[356010006,1741794647041,-500.0,0.00022191,2]
[356010007,1741794647051,-577.08,0.00022191,2]
[356010008,1741794647061,-500.0,0.00022191,2]
[356010010,1741794647070,-432.93302698,0.00022191,2]
[356010011,1741794647080,-500.0,0.00022191,2]
[356010012,1741794647090,-500.0,0.00022191,2]
[356010013,1741794647100,-1084.93,0.00022191,2]
[356010014,1741794647110,-500.0,0.00022191,2]
[356010015,1741794647121,-500.0,0.00022191,2]
[356010016,1741794647131,-500.0,0.00022191,2]
[356010017,1741794647141,-500.0,0.00022191,2]
[356010018,1741794647151,-500.0,0.00022191,2]
[356010019,1741794647161,-217.27264363,0.00022191,2]
[356010020,1741794647171,-500.0,0.00022191,2]
[356010021,1741794647180,-500.0,0.00022191,2]
[356010022,1741794647190,-1183.97,0.00022191,2]
[356010023,1741794647199,-540.60914616,0.00022191,2]
[356010024,1741794647209,-1076.98,0.00022191,2]
[356010025,1741794647275,-2510.1,0.00022191,2]
[356010026,1741794647287,-907.8,0.00022191,2]
[356010027,1741794647297,-500.0,0.00022191,2]
[356010028,1741794647307,-500.0,0.00022191,2]
[356010029,1741794647316,-500.0,0.00022191,2]
[356010030,1741794647326,-500.0,0.00022191,2]
[356010031,1741794647335,-500.0,0.00022191,2]
[356010032,1741794647345,-500.0,0.00022191,2]
[356010033,1741794647355,-778.23,0.00022191,2]
[356010034,1741794647375,-500.0,0.00022191,2]
[356010035,1741794647384,-500.0,0.00022191,2]
[356010036,1741794647394,-787.23,0.00022191,2]
[356010037,1741794647404,-500.0,0.00022191,2]
[356010038,1741794647413,-944.52,0.00022191,2]
[356010039,1741794647423,-504.72440878,0.00022191,2]
[356010040,1741794647432,-500.0,0.00022191,2]
[356010041,1741794647442,-614.58,0.00022191,2]
[356010042,1741794647451,-500.0,0.00022191,2]
[356010043,1741794647461,-500.0,0.00022191,2]
[356010044,1741794647471,-1106.9,0.00022191,2]
[356010045,1741794647480,-1034.28,0.00022191,2]
[356010046,1741794647490,-500.0,0.00022191,2]
[356010047,1741794647502,-4410.72,0.00022191,2]
[356010048,1741794647512,-576.5,0.00022191,2]
[356010049,1741794647522,-1371.15,0.00022191,2]
[356010050,1741794647539,-500.0,0.00022191,2]
[356010051,1741794647548,-517.06809337,0.00022191,2]
[356010052,1741794647557,-919.97,0.00022191,2]
[356010053,1741794647567,-500.0,0.00022191,2]
[356010054,1741794647579,-500.0,0.00022191,2]
[356010055,1741794647588,-1336.41,0.00022191,2]
[356010056,1741794647597,-519.85,0.00022191,2]
[356010057,1741794647607,-500.0,0.00022191,2]
[356010058,1741794647616,-500.0,0.00022191,2]
[356010059,1741794647625,-500.0,0.00022191,2]
[356010060,1741794647635,-500.0,0.00022191,2]
[356010061,1741794647644,-1538.87,0.00022191,2]
[356010062,1741794647653,-1391.97,0.00022191,2]
[356010063,1741794647663,-500.0,0.00022191,2]
[356010064,1741794647672,-500.0,0.00022191,2]
[356010065,1741794647681,-500.0,0.00022191,2]
[356010066,1741794647691,-500.0,0.00022191,2]
[356010067,1741794647699,-500.0,0.00022191,2]
[356010068,1741794647709,-500.0,0.00022191,2]
[356010069,1741794647718,-500.0,0.00022191,2]
[356010070,1741794647727,-500.0,0.00022191,2]
[356010071,1741794647737,-513.70180223,0.00022191,2]
[356010072,1741794647746,-500.0,0.00022191,2]
[356010073,1741794647756,-1043.35,0.00022191,2]
[356010074,1741794647766,-500.0,0.00022191,2]
[356010075,1741794647776,-1160.36,0.00022191,2]
[356010076,1741794647786,-500.0,0.00022191,2]
[356010077,1741794647795,-28259.29,0.00022191,2]
[356010078,1741794647804,-500.0,0.00022191,2]
[356010079,1741794647814,-682.07,0.00022191,2]
[356010080,1741794647823,-658.96,0.00022191,2]
[356010081,1741794647832,-522.32441203,0.00022191,2]
[356010082,1741794647842,-500.0,0.00022191,2]
[356010083,1741794647851,-1295.19,0.00022191,2]
[356010084,1741794647861,-1426.77,0.00022191,2]
[356010085,1741794647870,-500.0,0.00022191,2]
[356010086,1741794647880,-500.0,0.00022191,2]
[356010087,1741794647889,-500.0,0.00022191,2]
[356010088,1741794647899,-1318.16,0.00022191,2]
[356010089,1741794647909,-500.0,0.00022191,2]
[356010090,1741794647918,-500.0,0.00022191,2]
[356010091,1741794647928,-500.0,0.00022191,2]
[356010092,1741794647937,-1460.16,0.00022191,2]
[356010093,1741794647947,-2291.77,0.00022191,2]
[356010094,1741794647956,-500.0,0.00022191,2]
[356010095,1741794647966,-14439.21,0.00022191,2]
[356010096,1741794647975,-500.0,0.00022191,2]
[356010097,1741794647984,-500.0,0.00022191,2]
[356010098,1741794647994,-500.0,0.00022191,2]
[356010099,1741794648003,-500.0,0.00022191,2]
[356010100,1741794648012,-828.25,0.00022191,2]
[356010101,1741794648021,-500.0,0.00022191,2]
[356010102,1741794648032,-500.0,0.00022191,2]
[356010103,1741794648041,-1100.44,0.00022191,2]
[356010104,1741794648050,-516.45559555,0.00022191,2]
[356010105,1741794648060,-500.0,0.00022191,2]
[356010106,1741794648070,-938.73,0.00022191,2]
[356010107,1741794648080,-3223.36,0.00022191,2]
[356010108,1741794648090,-500.0,0.00022191,2]
[356010109,1741794648100,-511.25787417,0.00022191,2]
[356010110,1741794648110,-838.96,0.00022191,2]
[356010111,1741794648120,-500.0,0.00022191,2]
[356010112,1741794648129,-2588.33,0.00022191,2]
[356010113,1741794648139,-500.0,0.00022191,2]
[356010114,1741794648149,-500.0,0.00022191,2]
[356010115,1741794648159,-500.0,0.00022191,2]
[356010116,1741794648169,-500.0,0.00022191,2]
[356010117,1741794648179,-517.2,0.00022191,2]
[356010118,1741794648188,-2738.0,0.00022191,2]
[356010119,1741794648199,-500.0,0.00022191,2]
[356010120,1741794648208,-500.0,0.00022191,2]
[356010121,1741794648218,-500.0,0.00022191,2]
[356010122,1741794648227,-500.0,0.00022191,2]
[356010123,1741794648237,-1932.0,0.00022191,2]
[356010124,1741794648247,-1564.51,0.00022191,2]
[356010125,1741794648257,-500.0,0.00022191,2]
[356010126,1741794648267,-676.77,0.00022191,2]
[356010127,1741794648277,-704.21,0.00022191,2]
[356010128,1741794648289,-758.91,0.00022191,2]
[356010129,1741794648300,-593.0627324,0.00022191,2]
[356010130,1741794648310,-500.0,0.00022191,2]
[356010131,1741794648320,-500.0,0.00022191,2]
[356010132,1741794648330,-500.0,0.00022191,2]
[356010133,1741794648339,-1282.67,0.00022191,2]
[356010134,1741794648349,-500.0,0.00022191,2]
[356010135,1741794648359,-500.0,0.00022191,2]
[356010136,1741794648369,-1000.0,0.00022191,7]
[356010137,1741794648379,-665.39,0.00022191,2]
[356010138,1741794648390,-911.43,0.00022191,2]
[356010139,1741794648399,-500.0,0.00022191,2]
[356010140,1741794648409,-434.81598272,0.00022191,2]
[356010141,1741794648420,-1119.13,0.00022191,2]
[356010142,1741794648430,-931.73,0.00022191,2]
[356010143,1741794648440,-1076.48,0.00022191,2]
[356010144,1741794648449,-500.0,0.00022191,2]
[356010145,1741794648459,-972.28,0.00022191,2]
[356010146,1741794648467,-500.0,0.00022191,2]
[356010147,1741794648476,-514.82135152,0.00022191,2]
[356010148,1741794648485,-500.0,0.00022191,2]
[356010149,1741794648499,-500.0,0.00022191,2]
[356010150,1741794648510,-1892.44,0.00022191,2]
[356010151,1741794648519,-739.65,0.00022191,2]
[356010152,1741794648529,-660.77,0.00022191,2]
[356010153,1741794648541,-500.0,0.00022191,2]
[356010154,1741794648550,-500.0,0.00022191,2]
[356010155,1741794648560,-500.0,0.00022191,2]
[356010156,1741794648571,-1356.46,0.00022191,2]
[356010157,1741794648580,-500.0,0.00022191,2]
[356010158,1741794648589,-275.21378886,0.00022191,2]
[356010159,1741794648599,-500.0,0.00022191,2]
[356010160,1741794648609,-500.0,0.00022191,2]
[356010161,1741794648619,-500.0,0.00022191,2]
[356010162,1741794648628,-522.41,0.00022191,2]
[356010163,1741794648638,-500.0,0.00022191,2]
[356010164,1741794648648,-506.04,0.00022191,2]
[356010165,1741794648658,-500.0,0.00022191,2]
[356010166,1741794648668,-1328.41,0.00022191,2]
[356010167,1741794648678,-500.0,0.00022191,2]
[356010168,1741794648688,-1030.75,0.00022191,2]
[356010169,1741794648697,-500.0,0.00022191,2]
[356010170,1741794648707,-500.0,0.00022191,2]
[356010171,1741794648716,-500.0,0.00022191,2]
[356010172,1741794648726,-683.89,0.00022191,2]
[356010173,1741794648735,-500.0,0.00022191,2]
[356010174,1741794648745,-914.22,0.00022191,2]
[356010175,1741794648755,-972.73,0.00022191,2]
[356010176,1741794648765,-2819.17,0.00022191,2]
[356010177,1741794648774,-954.19,0.00022191,2]
[356010178,1741794648784,-2348.87,0.00022191,2]
[356010179,1741794648794,-500.0,0.00022191,2]
[356010180,1741794648803,-500.0,0.00022191,2]
[356010181,1741794648812,-500.0,0.00022191,2]
[356010182,1741794648822,-500.0,0.00022191,2]
[356010183,1741794648833,-500.0,0.00022191,2]
[356010184,1741794648842,-500.0,0.00022191,2]
[356010185,1741794648852,-581.01,0.00022191,2]
[356010186,1741794648862,-500.0,0.00022191,2]
[356010187,1741794648872,-500.0,0.00022191,2]
[356010188,1741794648882,-500.0,0.00022191,2]
[356010189,1741794648893,-2409.61,0.00022191,2]
[356010190,1741794648902,-500.0,0.00022191,2]
[356010191,1741794648912,-229.31550462,0.00022191,2]
[356010192,1741794648922,-500.0,0.00022191,2]
[356010193,1741794648932,-500.0,0.00022191,2]
[356010194,1741794648943,-1945.35,0.00022191,2]
[356010195,1741794648953,-772.1,0.00022191,2]
[356010196,1741794648963,-7714.65,0.00022191,2]
[356010197,1741794648973,-500.0,0.00022191,2]
[356010198,1741794648984,-500.0,0.00022191,2]
[356010199,1741794648994,-9999.0,0.00022191,2]
[356010200,1741794649005,-500.0,0.00022191,2]
[356010201,1741794649015,-1372.84,0.00022191,2]
[356010202,1741794649025,-500.0,0.00022191,2]
[356010203,1741794649035,-500.0,0.00022191,2]
[356010204,1741794649045,-500.0,0.00022191,2]
[356010205,1741794649055,-500.0,0.00022191,2]
[356010206,1741794649065,-500.0,0.00022191,2]
[356010207,1741794649075,-500.0,0.00022191,2]
[356010208,1741794649086,-500.0,0.00022191,2]
[356010209,1741794649096,-174.09255559,0.00022365,2]
[356010210,1741794649107,-160.00237157,0.00022365,2]
[356010211,1741794649117,-300.0,0.000224,10]
[356010212,1741794649127,-500.0,0.00022465,2]
[356010213,1741794649137,-621.24802495,0.00022465,2]
[356010214,1741794649147,-500.0,0.00022465,2]
[356010215,1741794649157,-500.0,0.00022465,5]
[356010216,1741794649167,-604.58641675,0.00022465,2]
[356010217,1741794649178,-715.23,0.00022465,2]
[356010218,1741794649188,-500.0,0.00022465,2]
[356010219,1741794649198,-500.0,0.00022465,2]
[356010220,1741794649208,-500.0,0.00022465,2]
[356010221,1741794649218,-1063.66,0.00022465,2]
[356010222,1741794649228,-500.0,0.00022465,2]
[356010223,1741794649238,-500.0,0.00022465,2]
[356010224,1741794649247,-335.04563205,0.00022465,2]
[356010225,1741794649257,-500.0,0.00022465,2]
[356010226,1741794649266,-500.0,0.00022465,2]
[356010227,1741794649276,-500.0,0.00022465,2]
[356010228,1741794649286,-500.0,0.00022465,2]
[356010229,1741794649295,-500.0,0.00022465,2]
[356010230,1741794649305,-613.14,0.00022465,2]
[356010231,1741794649314,-500.0,0.00022465,2]
[356010232,1741794649324,-500.0,0.00022465,2]
[356010233,1741794649334,-500.0,0.00022465,2]
[356010234,1741794649344,-500.0,0.00022465,2]
[356010235,1741794649354,-500.0,0.00022465,2]
[356010236,1741794649364,-512.69,0.00022465,2]
[356010237,1741794649373,-500.0,0.00022465,2]
[356010238,1741794649383,-500.0,0.00022465,2]
[356010239,1741794649394,-500.0,0.00022465,2]
[356010240,1741794649403,-500.0,0.00022465,2]
[356010241,1741794649413,-500.0,0.00022465,2]
[356010242,1741794649423,-500.0,0.00022465,2]
[356010243,1741794649432,-500.0,0.00022465,2]
[356010244,1741794649442,-500.0,0.00022465,2]
[356010245,1741794649451,-500.0,0.00022465,2]
[356010246,1741794649461,-500.0,0.00022465,2]
[356010247,1741794649470,-500.0,0.00022465,2]
[356010248,1741794649480,-500.0,0.00022465,2]
[356010249,1741794649490,-500.0,0.00022465,2]
[356010250,1741794649503,-539.28,0.00022465,2]
[356010251,1741794649513,-500.0,0.00022465,2]
[356010252,1741794649523,-500.0,0.00022465,2]
[356010253,1741794649532,-500.0,0.00022465,2]
[356010254,1741794649542,-500.0,0.00022465,2]
[356010255,1741794649551,-500.0,0.00022465,2]
[356010256,1741794649561,-500.0,0.00022465,2]
[356010257,1741794649571,-500.0,0.00022465,2]
[356010258,1741794649581,-1022.31,0.00022465,2]
[356010259,1741794649592,-1009.59,0.00022465,2]
[356010260,1741794649602,-500.0,0.00022465,2]
[356010261,1741794649611,-500.0,0.00022465,2]
[356010262,1741794649621,-500.0,0.00022465,2]
[356010263,1741794649631,-500.0,0.00022465,2]
[356010264,1741794649641,-500.0,0.00022465,2]
[356010265,1741794649651,-1471.75,0.00022465,2]
[356010266,1741794649660,-301.65020164,0.00022465,2]
[356010267,1741794649670,-914.37,0.00022465,2]
[356010268,1741794649680,-322.67675475,0.00022465,2]
[356010269,1741794649689,-522.55,0.00022465,2]
[356010270,1741794649699,-500.0,0.00022465,2]
[356010271,1741794649709,-500.0,0.00022465,2]
[356010272,1741794649719,-941.18,0.00022465,2]
[356010273,1741794649729,-500.0,0.00022465,2]
[356010274,1741794649739,-500.0,0.00022465,2]
[356010275,1741794649749,-500.0,0.00022465,2]
[356010276,1741794649759,-1862.45,0.00022465,2]
[356010277,1741794649769,-505.58278429,0.00022465,2]
[356010278,1741794649778,-500.0,0.00022465,2]
[356010279,1741794649791,-500.0,0.00022465,2]
[356010280,1741794649801,-530.35,0.00022465,2]
[356010281,1741794649810,-500.0,0.00022465,2]
[356010282,1741794649820,-500.0,0.00022465,2]
[356010283,1741794649830,-274.44098617,0.00022465,2]
[356010284,1741794649840,-500.0,0.00022465,2]
[356010285,1741794649850,-500.0,0.00022465,2]
[356010286,1741794649860,-555.86,0.00022465,2]
[356010287,1741794649870,-890.46,0.00022465,2]
[356010288,1741794649880,-500.0,0.00022465,2]
[356010289,1741794649891,-500.0,0.00022465,2]
[356010290,1741794649901,-500.0,0.00022465,2]
[356010291,1741794649911,-500.0,0.00022465,2]
[356010292,1741794649920,-581.21,0.00022465,2]
[356010293,1741794649930,-500.0,0.00022465,2]
[356010294,1741794649942,-570.22,0.00022465,2]
[356010295,1741794649952,-500.0,0.00022465,2]
[356010296,1741794649962,-1798.17,0.00022465,2]
[356010297,1741794649973,-500.0,0.00022465,2]
[356010298,1741794649982,-2164.57,0.00022465,2]
[356010299,1741794649992,-1121.99,0.00022465,2]
[356010300,1741794650003,-500.0,0.00022465,2]
[356010301,1741794650013,-500.0,0.00022465,2]
[356010302,1741794650023,-500.0,0.00022465,2]
[356010303,1741794650035,-500.0,0.00022465,2]
[356010304,1741794650045,-480.79818862,0.00022465,2]
[356010305,1741794650055,-500.0,0.00022465,2]
[356010306,1741794650065,-1604.04,0.00022465,2]
[356010307,1741794650074,-511.53,0.00022465,2]
[356010308,1741794650084,-500.0,0.00022465,2]
[356010309,1741794650094,-1782.15,0.00022465,2]
[356010310,1741794650104,-1013.36,0.00022465,2]
[356010311,1741794650115,-500.0,0.00022465,2]
[356010312,1741794650124,-500.0,0.00022465,2]
[356010313,1741794650135,-3181.93,0.00022465,2]
[356010314,1741794650145,-500.0,0.00022465,2]
[356010315,1741794650156,-500.0,0.00022465,2]
[356010316,1741794650166,-500.0,0.00022465,2]